bitfinex-derivatives/quotes_BTCF0:USTF0_20260106
["timestamp","ask_amount","ask_price","bid_price","bid_amount"]
[1767709230810,0.010611,94258.0,94234.0,0.09105827]
[1767709230811,0.09028,94247.0,94239.0,0.01997469]
[1767709231007,0.010611,94263.0,94239.0,0.00936169]
[1767709231205,0.082171,94258.0,94239.0,0.00936169]
[1767709231401,0.04824901,94262.0,94239.0,0.01997469]
[1767709231603,0.426,94258.0,94239.0,0.00936169]
[1767709232302,0.01061,94270.0,94242.0,0.07368426]
[1767709232496,0.13419818,94258.0,94243.0,0.01962407]
[1767709233203,0.13419818,94258.0,94243.0,0.00901107]
[1767709233713,0.05790952,94257.0,94229.0,0.00901107]
[1767709234012,0.05790952,94257.0,94230.0,0.15941936]
[1767709234209,0.010612,94252.0,94230.0,0.15941936]
[1767709234713,0.04885983,94255.0,94232.0,0.010614]
[1767709235309,0.06546836,94254.0,94229.0,0.01962607]
[1767709235507,3.38572562,94350.0,94245.0,0.00901107]
[1767709235508,0.010611,94264.0,94245.0,0.00901107]
[1767709235713,0.09028,94263.0,94237.0,0.07368426]
[1767709235900,0.09028,94263.0,94242.0,0.010613]
[1767709236701,0.100891,94263.0,94238.0,0.010614]
[1767709236903,0.100891,94263.0,94238.0,0.00901107]
[1767709236904,0.09028,94263.0,94238.0,0.00901107]
[1767709237100,0.00942176,94258.0,94237.0,0.010614]
[1767709237305,0.00942176,94258.0,94238.0,0.010614]
[1767709237512,0.48248,94257.0,94236.0,0.00901107]
[1767709237711,0.09024,94256.0,94236.0,0.00901107]
[1767709237916,0.72756,94255.0,94245.0,0.010613]
[1767709238111,0.05285615,94288.0,94258.0,0.00901107]
[1767709238415,0.010609,94277.0,94254.0,0.010612]
[1767709238613,0.00942176,94276.0,94251.0,0.00901107]
[1767709238915,0.8178,94287.0,94251.0,0.00901107]
[1767709238916,0.15166231,94275.0,94251.0,0.00901107]
[1767709239114,0.00942176,94272.0,94248.0,0.010612]
[1767709239320,0.00942176,94270.0,94248.0,0.010612]
[1767709239512,0.05977752,94270.0,94251.0,0.010612]
[1767709239705,0.00942176,94270.0,94251.0,0.010612]
[1767709240409,0.62224,94269.0,94245.0,0.00901107]
[1767709240610,0.62224,94269.0,94251.0,0.010612]
[1767709240810,0.62224,94269.0,94251.0,0.01962307]
[1767709241008,0.09024,94268.0,94251.0,0.01962307]
[1767709241216,0.09024,94267.0,94251.0,0.01962307]
[1767709241408,0.09024,94267.0,94251.0,0.010612]
[1767709241715,0.09024,94267.0,94249.0,0.010612]
[1767709242022,0.05630692,94265.0,94245.0,0.15821907]
[1767709242315,0.09024,94267.0,94248.0,0.010612]
[1767709242510,0.09024,94267.0,94244.0,0.15821907]
[1767709242704,0.05630692,94271.0,94241.0,0.00901107]
[1767709242909,0.05630692,94271.0,94242.0,0.00901107]
[1767709243108,0.15804,94270.0,94245.0,0.00901107]
[1767709243508,0.15804,94270.0,94246.0,0.15880107]
[1767709243715,0.010609,94280.0,94254.0,0.07368426]
[1767709243908,0.00942176,94277.0,94256.0,0.010611]
[1767709244107,0.00942176,94277.0,94246.0,0.15880107]
[1767709244108,0.09024,94276.0,94252.0,0.00901107]
[1767709244412,0.05017242,94271.0,94249.0,0.010612]
[1767709244617,0.05017242,94271.0,94248.0,0.15994332]
[1767709244618,0.09024,94276.0,94261.0,0.00901107]
[1767709245202,0.09024,94276.0,94260.0,0.010611]
[1767709245415,0.40172,94280.0,94260.0,0.010611]
[1767709245616,0.09024,94275.0,94260.0,0.010611]
[1767709245819,0.09024,94275.0,94257.0,0.010611]
[1767709246305,0.09024,94275.0,94257.0,0.01962207]
[1767709246718,0.01947176,94300.0,94273.0,0.07368426]
[1767709246908,0.010607,94297.0,94276.0,0.010609]
[1767709247110,0.010607,94295.0,94274.0,0.00901107]
[1767709247304,0.010607,94297.0,94274.0,0.00901107]
[1767709247508,0.00942176,94298.0,94274.0,0.00901107]
[1767709247704,0.00942176,94298.0,94272.0,0.07368426]
[1767709247705,0.010607,94293.0,94277.0,0.00901107]
[1767709247909,0.09024,94292.0,94277.0,0.00901107]
[1767709248110,0.09024,94296.0,94279.0,0.00901107]
[1767709248318,0.09024,94296.0,94260.0,0.010611]
[1767709248319,0.09024,94295.0,94284.0,0.00901107]
[1767709250016,0.00917115,94300.0,94280.0,0.07368426]
[1767709250204,0.09024,94299.0,94284.0,0.00901107]
[1767709250408,0.09024,94299.0,94269.0,0.01061]
[1767709250409,0.09024,94298.0,94286.0,0.00901107]
[1767709250606,0.03644399,94340.0,94297.0,0.07368426]
[1767709250806,0.010603,94336.0,94310.0,0.07368426]
[1767709251006,0.010601,94346.0,94323.0,0.00901107]
[1767709251320,0.00942176,94351.0,94323.0,0.00901107]
[1767709251321,0.0923598,94349.0,94324.0,0.010604]
[1767709251518,0.010601,94348.0,94324.0,0.010604]
[1767709251718,0.00212047,94345.0,94327.0,0.010603]
[1767709251914,0.00212047,94345.0,94328.0,0.0120768]
[1767709252106,0.00212047,94345.0,94329.0,0.0120763]
[1767709252314,0.00942176,94351.0,94316.0,0.09024]
[1767709252315,0.010651,94350.0,94328.0,0.07368426]
[1767709252507,0.010651,94350.0,94316.0,0.09024]
[1767709252508,0.00942176,94349.0,94329.0,0.01206459]
[1767709252814,0.00942176,94349.0,94322.0,0.00901107]
[1767709253022,0.00942176,94349.0,94321.0,0.08428826]
[1767709253023,0.010602,94345.0,94324.0,0.08269533]
[1767709253316,5e-05,94350.0,94326.0,0.08269533]
[1767709253518,0.0902,94349.0,94331.0,0.07368426]
[1767709253722,0.0902,94349.0,94332.0,0.00901107]
[1767709253921,0.0902,94349.0,94332.0,0.08269533]
[1767709254312,0.09015,94349.0,94332.0,0.08269533]
[1767709254924,0.0902,94348.0,94332.0,0.08269533]
[1767709256112,5e-05,94350.0,94340.0,0.010602]
[1767709256315,0.0902,94349.0,94333.0,0.08269533]
[1767709256622,5e-05,94350.0,94334.0,0.010603]
[1767709256812,0.0902,94348.0,94334.0,0.010603]
[1767709257008,5e-05,94350.0,94334.0,0.010603]
[1767709257213,0.0902,94349.0,94334.0,0.010603]
[1767709257417,5e-05,94350.0,94334.0,0.010603]
[1767709257418,5e-05,94350.0,94334.0,0.08764162]
[1767709257716,5e-05,94350.0,94330.0,0.010603]
[1767709257717,0.0902,94349.0,94330.0,0.010603]
[1767709257917,0.010602,94345.0,94331.0,0.0120261]
[1767709258109,0.010602,94345.0,94325.0,0.00927672]
[1767709258110,0.00909418,94348.0,94325.0,0.010604]
[1767709258422,5e-05,94350.0,94330.0,0.00927672]
[1767709258621,5e-05,94350.0,94320.0,0.010604]
[1767709258622,0.0902,94349.0,94341.0,0.010602]
[1767709258824,0.01800817,94366.0,94348.0,0.0677619]
[1767709259125,0.01800817,94366.0,94331.0,0.15888786]
[1767709259126,0.10820817,94366.0,94343.0,0.0677619]
[1767709259326,0.00909418,94365.0,94344.0,0.0120108]
[1767709259528,0.00909418,94365.0,94344.0,0.15999557]
[1767709259718,0.00909418,94365.0,94342.0,0.15999557]
[1767709259921,0.00909418,94365.0,94340.0,0.07703862]
[1767709260119,0.00909418,94365.0,94341.0,0.01201152]
[1767709260321,0.10820817,94366.0,94343.0,0.15891956]
[1767709260526,0.10820817,94366.0,94346.0,0.07703862]
[1767709260527,0.01800817,94366.0,94346.0,0.07703862]
[1767709260713,0.0106,94361.0,94341.0,0.15891956]
[1767709261022,0.0106,94361.0,94339.0,0.00927672]
[1767709261023,0.00909418,94383.0,94350.0,0.07703862]
[1767709261220,0.010598,94378.0,94355.0,0.00971666]
[1767709261427,0.15356,94377.0,94356.0,0.08296893]
[1767709261729,0.010597,94388.0,94361.0,0.08296893]
[1767709261926,0.07304,94382.0,94362.0,0.07325227]
[1767709262222,0.36076,94408.0,94362.0,0.07325227]
[1767709262223,0.07228728,94424.0,94384.0,0.00971666]
[1767709262528,0.010594,94409.0,94388.0,0.07325227]
[1767709262729,0.010591,94443.0,94385.0,0.15826479]
[1767709262730,0.00965919,94405.0,94385.0,0.15826479]
[1767709263020,0.00965919,94405.0,94369.0,0.00971666]
[1767709263021,0.09016,94424.0,94398.0,0.00971666]
[1767709263215,0.09016,94424.0,94404.0,0.00971666]
[1767709263414,0.00988348,94453.0,94406.0,0.07325227]
[1767709263723,0.00988348,94453.0,94405.0,0.00971666]
[1767709263724,0.010592,94432.0,94405.0,0.16912163]
[1767709264028,0.07228728,94439.0,94406.0,0.01496444]
[1767709264029,0.010592,94429.0,94406.0,0.01496444]
[1767709264228,0.09016,94431.0,94410.0,0.00971666]
[1767709264520,0.36068,94466.0,94411.0,0.09016]
[1767709264521,0.010591,94437.0,94411.0,0.09016]
[1767709264723,0.09016,94446.0,94412.0,0.00971666]
[1767709264919,0.09016,94445.0,94412.0,0.00971666]
[1767709265227,0.09016,94445.0,94395.0,0.00971666]
[1767709265414,0.09016,94445.0,94399.0,0.00971666]
[1767709265614,0.00965919,94434.0,94397.0,0.15879878]
[1767709265819,0.052952,94449.0,94384.0,0.00971666]
[1767709265820,0.00965919,94419.0,94384.0,0.00971666]
[1767709266017,0.010595,94404.0,94384.0,0.00971666]
[1767709266323,0.00965919,94426.0,94395.0,0.00971666]
[1767709266629,0.010593,94419.0,94396.0,0.09016]
[1767709267121,0.00965919,94422.0,94396.0,0.09016]
[1767709267322,0.010593,94421.0,94396.0,0.09016]
[1767709267723,0.07228728,94426.0,94396.0,0.09016]
[1767709267724,0.09012,94426.0,94399.0,0.00971666]
[1767709267918,0.00965919,94431.0,94402.0,0.010595]
[1767709268231,0.00965919,94431.0,94399.0,0.010595]
[1767709268429,0.00965919,94422.0,94400.0,0.09012]
[1767709268616,0.010593,94417.0,94400.0,0.09012]
[1767709268823,0.07228728,94415.0,94395.0,0.15911929]
[1767709269026,0.010594,94411.0,94387.0,0.09012]
[1767709269227,0.00965919,94421.0,94392.0,0.010596]
[1767709269433,0.00960919,94417.0,94391.0,0.00971666]
[1767709269631,0.100714,94416.0,94391.0,0.00971666]
[1767709269932,0.100714,94416.0,94387.0,0.09012]
[1767709269933,0.010595,94407.0,94387.0,0.09012]
[1767709270226,0.010595,94404.0,94378.0,0.010598]
[1767709270441,0.010595,94404.0,94379.0,0.09012]
[1767709270622,0.010595,94404.0,94384.0,0.15830958]
[1767709270820,0.010595,94406.0,94380.0,0.010598]
[1767709271021,0.010595,94403.0,94380.0,0.15979115]
[1767709271232,0.010595,94403.0,94385.0,0.15979115]
[1767709271433,0.010595,94407.0,94379.0,0.100718]
[1767709271630,0.02025419,94407.0,94381.0,0.15979115]
[1767709271832,0.010595,94404.0,94386.0,0.15979115]
[1767709272035,0.010593,94425.0,94379.0,0.09012]
[1767709272036,0.00965919,94402.0,94379.0,0.09012]
[1767709272223,0.00965919,94402.0,94359.0,0.36056]
[1767709272224,0.00965919,94380.0,94347.0,0.07325227]
[1767709272425,0.00965919,94380.0,94332.0,0.010603]
[1767709272426,0.010597,94383.0,94357.0,0.00971666]
[1767709272733,0.00965919,94381.0,94355.0,0.15934611]
[1767709272934,0.0106,94363.0,94351.0,0.09023023]
[1767709273120,0.0106,94363.0,94331.0,0.00971666]
[1767709273121,0.00965919,94363.0,94331.0,0.00971666]
[1767709273325,0.00965919,94358.0,94327.0,0.010603]
[1767709273520,0.07228728,94359.0,94327.0,0.010603]
[1767709273521,0.00965919,94356.0,94331.0,0.15976881]
[1767709273831,0.00965919,94353.0,94327.0,0.010603]
[1767709274126,0.00011023,94352.0,94326.0,0.09012]
[1767709274335,0.09012,94351.0,94330.0,0.15999889]
[1767709274728,0.07228728,94359.0,94326.0,0.09012]
[1767709274934,0.07228728,94375.0,94341.0,0.00971666]
[1767709275134,0.07228728,94384.0,94347.0,0.00971666]
[1767709275435,0.09012,94383.0,94352.0,0.00971666]
[1767709275732,0.010598,94379.0,94352.0,0.00971666]
[1767709276126,0.010598,94379.0,94313.0,0.07404657]
[1767709276127,0.010597,94388.0,94361.0,0.07325227]
[1767709276330,0.00965919,94397.0,94363.0,0.010599]
[1767709276525,0.00965919,94395.0,94363.0,0.010599]
[1767709276723,0.010597,94389.0,94362.0,0.00971666]
[1767709276927,0.010597,94383.0,94362.0,0.00971666]
[1767709277224,0.010597,94382.0,94357.0,0.0106]
[1767709277421,0.00965919,94383.0,94358.0,0.01460621]
[1767709277624,0.00965919,94383.0,94359.0,0.01460621]
[1767709277822,0.15999889,94410.0,94354.0,0.09012]
[1767709277823,0.010596,94394.0,94370.0,0.15999889]
[1767709278040,0.100716,94393.0,94370.0,0.15999889]
[1767709278223,0.100716,94393.0,94366.0,0.09012]
[1767709278224,0.00965919,94393.0,94366.0,0.09012]
[1767709278424,0.09012,94394.0,94380.0,0.15999889]
[1767709278624,0.010589,94453.0,94380.0,0.15999889]
[1767709278625,0.00965919,94416.0,94381.0,0.08296893]
[1767709278835,0.010591,94439.0,94393.0,0.00971666]
[1767709278836,0.09012,94439.0,94393.0,0.00971666]
[1767709279025,0.09012,94439.0,94394.0,0.1046697]
[1767709279026,0.010593,94418.0,94394.0,0.1046697]
[1767709279226,0.010591,94436.0,94395.0,0.0145497]
[1767709279523,0.010592,94433.0,94396.0,0.0145497]
[1767709279723,0.010595,94404.0,94397.0,7e-07]
[1767709279929,0.010594,94416.0,94371.0,0.010599]
[1767709280132,0.010595,94400.0,94373.0,0.010598]
[1767709280440,0.010596,94395.0,94374.0,0.09012]
[1767709280733,0.010595,94406.0,94380.0,0.15999889]
[1767709280938,0.00965919,94413.0,94381.0,0.09012]
[1767709281233,0.00965919,94413.0,94382.0,0.09012]
[1767709281234,0.010595,94402.0,94382.0,0.09012]
[1767709281639,0.07228728,94412.0,94382.0,0.09012]
[1767709281833,0.00965919,94401.0,94383.0,0.09012]
[1767709282135,0.010596,94392.0,94367.0,0.00971666]
[1767709282335,0.00965919,94401.0,94368.0,0.09012]
[1767709282535,0.010596,94392.0,94366.0,0.010599]
[1767709282836,0.00965919,94401.0,94367.0,0.09012]
[1767709282837,0.010596,94391.0,94367.0,0.09012]
[1767709283040,0.010596,94392.0,94368.0,0.010599]
[1767709283540,0.010596,94394.0,94367.0,0.09012]
[1767709283740,0.010596,94394.0,94365.0,0.010599]
[1767709283741,0.010596,94394.0,94368.0,0.09012]
[1767709284137,0.00965919,94395.0,94368.0,0.100719]
[1767709284438,0.010595,94402.0,94379.0,0.00971666]
[1767709284736,0.09012,94406.0,94379.0,0.00971666]
[1767709284737,0.09012,94406.0,94381.0,0.08296893]
[1767709284930,0.00965919,94427.0,94396.0,0.15999889]
[1767709285129,0.010594,94411.0,94393.0,0.00971666]
[1767709285336,0.010594,94415.0,94393.0,0.00971666]
[1767709285527,0.09012,94426.0,94393.0,0.00971666]
[1767709285528,0.010593,94419.0,94393.0,0.00971666]
[1767709285733,0.010589,94455.0,94392.0,0.100716]
[1767709285734,0.00665919,94446.0,94410.0,0.07325227]
[1767709285937,0.00665919,94446.0,94394.0,0.4]
[1767709285938,0.07228728,94459.0,94430.0,0.15999889]
[1767709286328,0.010589,94454.0,94432.0,0.00971666]
[1767709286534,0.09012,94462.0,94427.0,0.010592]
[1767709286739,0.09012,94461.0,94427.0,0.010592]
[1767709287040,0.09012,94461.0,94428.0,0.09012]
[1767709287237,0.010589,94459.0,94429.0,0.010592]
[1767709287537,0.09012,94461.0,94430.0,0.16971555]
[1767709287740,0.09012,94461.0,94430.0,0.00971666]
[1767709288038,0.00965919,94460.0,94422.0,0.07325227]
[1767709288249,0.01059,94451.0,94423.0,0.09012]
[1767709288434,0.01059,94451.0,94427.0,0.03729197]
[1767709288634,0.01059,94450.0,94427.0,0.03729197]
[1767709288833,0.01059,94447.0,94426.0,0.03729197]
[1767709289141,0.01059,94451.0,94427.0,0.04700863]
[1767709289343,0.00965919,94470.0,94442.0,0.010591]
[1767709289537,0.09008,94469.0,94441.0,0.010591]
[1767709289840,0.09008,94469.0,94438.0,0.09008]
[1767709290042,0.09008,94469.0,94434.0,0.07325227]
[1767709290043,0.00965919,94462.0,94434.0,0.03729197]
[1767709290346,0.00965919,94456.0,94434.0,0.09008]
[1767709290640,0.01059,94451.0,94431.0,0.09008]
[1767709290944,0.010589,94455.0,94432.0,0.03729197]
[1767709291242,0.010589,94459.0,94432.0,0.03729197]
[1767709291443,0.010588,94463.0,94440.0,0.15999889]
[1767709291644,0.0192762,94470.0,94441.0,0.01428747]
[1767709291839,0.0192762,94467.0,94442.0,0.01428747]
[1767709292136,0.010589,94460.0,94443.0,0.01428747]
[1767709292440,0.010589,94460.0,94444.0,0.01428747]
[1767709292642,0.010589,94460.0,94445.0,0.01428747]
[1767709292843,0.0192762,94460.0,94436.0,0.09008]
[1767709293040,0.01059,94451.0,94436.0,0.09008]
[1767709293541,0.010589,94455.0,94436.0,0.09008]
[1767709293736,0.010589,94459.0,94443.0,0.01948808]
[1767709293941,0.010588,94463.0,94436.0,0.14686005]
[1767709294244,0.010588,94463.0,94439.0,0.01948808]
[1767709294432,0.010588,94463.0,94441.0,0.01948808]
[1767709294638,0.0192762,94474.0,94445.0,0.1139899]
[1767709294840,0.09008,94473.0,94452.0,0.01948808]
[1767709295033,0.0192762,94483.0,94452.0,0.10956808]
[1767709295338,0.0192762,94478.0,94443.0,0.01948808]
[1767709295530,0.0192762,94467.0,94437.0,0.09450182]
[1767709295735,0.010588,94462.0,94444.0,0.09008]
[1767709295930,0.10932122,94476.0,94448.0,0.01948808]
[1767709295931,0.0192762,94476.0,94448.0,0.01948808]
[1767709296337,0.010588,94466.0,94449.0,0.09008]
[1767709296738,0.1093562,94476.0,94439.0,0.010591]
[1767709296739,0.0192762,94472.0,94439.0,0.010591]
[1767709296932,0.18012502,94476.0,94431.0,0.03729197]
[1767709296933,0.0192762,94464.0,94431.0,0.03729197]
[1767709297129,0.0192762,94463.0,94430.0,0.19729086]
[1767709297342,0.01059,94445.0,94427.0,0.03729197]
[1767709297640,0.01059,94449.0,94428.0,0.09008]
[1767709297841,0.01059,94446.0,94419.0,0.010593]
[1767709298046,0.01059,94446.0,94421.0,0.010593]
[1767709298247,0.01059,94446.0,94422.0,0.09008]
[1767709298748,0.01059,94446.0,94420.0,0.15999889]
[1767709298749,0.010591,94440.0,94420.0,0.15999889]
[1767709298936,0.010591,94440.0,94361.0,0.18783754]
[1767709298937,0.0192762,94438.0,94400.0,0.15999889]
[1767709299140,0.010593,94426.0,94401.0,0.100675]
[1767709299338,0.010592,94430.0,94401.0,0.24822801]
[1767709299541,0.0192762,94438.0,94402.0,0.010595]
[1767709299542,0.010592,94427.0,94402.0,0.010595]
[1767709299748,0.0192762,94434.0,94401.0,0.15814801]
[1767709299939,0.0192762,94434.0,94403.0,0.24822801]
[1767709300235,0.010592,94426.0,94403.0,0.09008]
[1767709300445,0.0192762,94425.0,94404.0,0.15956531]
[1767709300737,0.0192762,94425.0,94399.0,0.09008]
[1767709300738,0.010593,94423.0,94399.0,0.09008]
[1767709300947,0.0298692,94423.0,94399.0,0.09008]
[1767709301246,0.0298692,94423.0,94401.0,0.010595]
[1767709301247,0.0192762,94423.0,94401.0,0.010595]
[1767709301446,0.0192762,94423.0,94399.0,0.09008]
[1767709301642,0.010591,94443.0,94399.0,0.09008]
[1767709301643,0.010591,94438.0,94410.0,0.27398879]
[1767709301846,0.09008,94440.0,94411.0,0.09008]
[1767709301847,0.0298672,94436.0,94411.0,0.09008]
[1767709302048,0.0192762,94436.0,94411.0,0.09008]
[1767709302248,0.09008,94442.0,94420.0,0.27398879]
[1767709302555,0.0192762,94454.0,94423.0,0.1139899]
[1767709302739,0.01059,94449.0,94424.0,0.09008]
[1767709302937,0.01059,94449.0,94413.0,0.1139899]
[1767709302938,0.09004502,94449.0,94413.0,0.1139899]
[1767709303138,0.0192762,94440.0,94414.0,0.09008]
[1767709303341,0.0192762,94434.0,94414.0,0.15820188]
[1767709303543,0.0192762,94434.0,94411.0,0.09008]
[1767709303851,0.0192762,94434.0,94408.0,0.04404163]
[1767709303852,0.0192762,94431.0,94408.0,0.04404163]
[1767709304042,0.010593,94425.0,94408.0,0.04404163]
[1767709304749,0.01059,94446.0,94420.0,0.09450182]
[1767709304750,0.010591,94442.0,94420.0,0.09450182]
[1767709304943,0.10067,94446.0,94421.0,0.10854034]
[1767709305139,0.1199462,94446.0,94422.0,0.01403852]
[1767709305345,0.1199462,94446.0,94421.0,0.09450182]
[1767709305346,0.1199462,94446.0,94423.0,0.01403852]
[1767709305538,0.010591,94443.0,94424.0,0.01403852]
[1767709305752,0.010591,94440.0,94425.0,0.01403852]
[1767709305945,0.0192762,94439.0,94426.0,0.01403852]
[1767709306140,0.09008,94438.0,94427.0,0.01403852]
[1767709306449,0.0192762,94449.0,94417.0,0.09450182]
[1767709306450,0.0192762,94449.0,94430.0,0.010592]
[1767709306641,0.09008,94448.0,94431.0,0.01403852]
[1767709306838,0.09008,94448.0,94429.0,0.010592]
[1767709306839,0.09008,94447.0,94432.0,0.01403852]
[1767709307040,0.09008,94447.0,94433.0,0.01403852]
[1767709307246,0.09008,94447.0,94428.0,0.01611376]
[1767709307247,0.010586,94485.0,94440.0,0.09450182]
[1767709307451,0.010586,94485.0,94441.0,0.01403852]
[1767709307452,0.09008,94472.0,94441.0,0.01403852]
[1767709307652,0.09008,94472.0,94442.0,0.01403852]
[1767709307852,0.010588,94467.0,94443.0,0.01403852]
[1767709308040,0.09008,94466.0,94444.0,0.01403852]
[1767709308241,0.010588,94463.0,94445.0,0.01403852]
[1767709308552,0.010589,94458.0,94446.0,0.01403852]
[1767709308753,0.0192762,94464.0,94447.0,0.01403852]
[1767709308949,0.010589,94455.0,94448.0,0.01403852]
[1767709309251,0.09008,94457.0,94429.0,0.01948808]
[1767709309457,0.09008,94457.0,94433.0,0.010592]
[1767709309857,0.100669,94457.0,94433.0,0.010592]
[1767709310047,0.010589,94457.0,94433.0,0.010592]
[1767709310247,0.09004502,94468.0,94428.0,0.01611376]
[1767709310248,0.1093562,94456.0,94428.0,0.01611376]
[1767709310449,0.100669,94455.0,94429.0,0.010592]
[1767709310742,0.09004502,94468.0,94428.0,0.01611376]
[1767709310743,0.09004502,94468.0,94434.0,0.1139899]
[1767709310946,0.010589,94461.0,94440.0,0.15999889]
[1767709311148,0.0192762,94469.0,94445.0,0.01059]
[1767709311343,0.09008,94468.0,94445.0,0.01059]
[1767709311858,0.09008,94467.0,94442.0,0.1245809]
[1767709312058,0.010588,94464.0,94440.0,0.010591]
[1767709312451,0.1093562,94488.0,94459.0,0.1139899]
[1767709312645,0.010587,94477.0,94459.0,0.01613935]
[1767709313252,0.09008,94488.0,94459.0,0.01613935]
[1767709313253,0.010586,94486.0,94459.0,0.01613935]
[1767709313455,0.010587,94472.0,94459.0,0.01613935]
[1767709313657,0.0192762,94472.0,94459.0,3.5e-07]
[1767709313860,0.0192762,94472.0,94437.0,0.07447414]
[1767709314061,0.0192762,94468.0,94436.0,0.100631]
[1767709314356,0.010589,94457.0,94435.0,0.1413214]
[1767709314564,0.09004,94459.0,94434.0,0.03906282]
[1767709314760,0.010589,94458.0,94435.0,0.1700314]
[1767709314962,0.010589,94455.0,94435.0,0.1594404]
[1767709315266,0.01059,94452.0,94427.0,0.09004]
[1767709315758,0.0192762,94454.0,94428.0,0.02670576]
[1767709315965,0.0192762,94454.0,94431.0,0.010592]
[1767709316858,0.0298652,94454.0,94428.0,0.03560184]
[1767709317059,0.01059,94452.0,94428.0,0.01611376]
[1767709317456,0.0324409,94489.0,94449.0,0.03386736]
[1767709317661,0.010588,94468.0,94452.0,0.05615221]
[1767709317862,0.010588,94468.0,94451.0,0.05615221]
[1767709318156,0.09004,94469.0,94451.0,0.05615221]
[1767709318362,0.010588,94465.0,94451.0,0.05615221]
[1767709318567,0.010588,94465.0,94449.0,0.05615221]
[1767709318768,0.010588,94465.0,94450.0,0.05615221]
[1767709318970,0.010588,94462.0,94449.0,0.05615221]
[1767709319170,0.0430289,94462.0,94449.0,0.05615221]
[1767709319361,0.010589,94459.0,94449.0,0.05615221]
[1767709319560,0.010589,94459.0,94448.0,0.01585262]
[1767709319561,0.010589,94459.0,94448.0,0.07200483]
[1767709319762,0.0430289,94462.0,94448.0,0.07200483]
[1767709319959,0.0324409,94458.0,94429.0,0.093657]
[1767709320165,0.010587,94471.0,94427.0,0.09004]
[1767709320166,0.010589,94454.0,94427.0,0.09004]
[1767709320465,0.010589,94454.0,94428.0,0.010592]
[1767709320664,0.01059,94451.0,94427.0,0.09004]
[1767709321165,0.09004,94453.0,94427.0,0.12390736]
[1767709321366,0.09004,94453.0,94428.0,0.01229825]
[1767709321670,0.09004,94453.0,94429.0,0.04627759]
[1767709321868,0.010589,94456.0,94430.0,0.01229825]
[1767709322059,0.09004,94455.0,94431.0,0.02289025]
[1767709322255,0.09004,94455.0,94420.0,0.15999889]
[1767709322256,0.01059,94447.0,94432.0,0.01229825]
[1767709322461,0.1309112,94454.0,94419.0,0.09004]
[1767709322462,0.010591,94442.0,94419.0,0.09004]
[1767709322665,0.09004,94442.0,94425.0,0.010593]
[1767709323469,0.03501788,94454.0,94425.0,0.010593]
[1767709323774,0.03501788,94454.0,94419.0,0.09004]
[1767709323775,0.09589332,94444.0,94419.0,0.09669175]
[1767709323976,0.100629,94454.0,94434.0,0.03397934]
[1767709324173,0.01059,94449.0,94424.0,0.03397934]
[1767709324372,0.10063,94449.0,94424.0,0.03397934]
[1767709324571,0.01059,94446.0,94424.0,0.03397934]
[1767709324966,0.09004,94449.0,94392.0,0.13169024]
[1767709324967,0.03501788,94444.0,94416.0,0.03397934]
[1767709325278,0.010591,94436.0,94416.0,0.03397934]
[1767709325583,0.09004,94438.0,94416.0,0.03397934]
[1767709325971,0.100631,94438.0,94416.0,0.03397934]
[1767709327877,0.010591,94435.0,94412.0,0.03397934]
[1767709328077,0.010592,94428.0,94405.0,0.0748833]
[1767709328385,0.03501788,94437.0,94405.0,0.03397934]
[1767709328386,0.010593,94425.0,94405.0,0.03397934]
[1767709328683,0.09004,94427.0,94405.0,0.03397934]
[1767709329079,0.09004,94427.0,94405.0,0.04457434]
[1767709329381,0.100632,94427.0,94405.0,0.03397934]
[1767709329768,0.100632,94427.0,94390.0,0.15999889]
[1767709329769,0.03501788,94426.0,94397.0,0.09004]
[1767709330470,0.03501788,94421.0,94397.0,0.09004]
[1767709330675,0.09589332,94424.0,94397.0,0.09004]
[1767709330676,0.010593,94418.0,94397.0,0.09004]
[1767709331376,0.03501788,94420.0,94397.0,0.09004]
[1767709331576,0.010593,94421.0,94397.0,0.09004]
[1767709331772,0.010593,94419.0,94397.0,0.09004]
[1767709332280,0.03501788,94421.0,94390.0,0.09008]
[1767709332476,0.03501788,94421.0,94390.0,0.100676]
[1767709332682,0.010594,94416.0,94390.0,0.13465534]
[1767709332886,0.010594,94414.0,94393.0,0.0748833]
[1767709333083,0.09008,94415.0,94394.0,0.03397934]
[1767709333276,0.09008,94415.0,94398.0,0.010596]
[1767709333472,0.09008,94415.0,94395.0,0.0854793]
[1767709333874,0.09008,94415.0,94395.0,0.010596]
[1767709334081,0.09008,94415.0,94396.0,0.0748833]
[1767709334689,0.09008,94415.0,94397.0,0.01136205]
[1767709334881,0.09008,94415.0,94398.0,0.01136205]
[1767709335077,0.010593,94425.0,94400.0,0.03397934]
[1767709335282,0.09008,94424.0,94407.0,0.010595]
[1767709335479,0.010592,94428.0,94405.0,0.03397934]
[1767709335682,0.09008,94427.0,94406.0,0.01135772]
[1767709335878,0.09008,94426.0,94407.0,0.01135718]
[1767709336084,0.09008,94425.0,94407.0,0.010595]
[1767709336285,0.010592,94430.0,94406.0,0.03397934]
[1767709336484,0.03501788,94437.0,94400.0,0.0748833]
[1767709336485,0.03501788,94426.0,94400.0,0.0854783]
[1767709336679,0.119671,94440.0,94400.0,0.0854783]
[1767709336680,0.09008,94425.0,94404.0,0.010595]
[1767709336877,0.03501788,94443.0,94411.0,0.03397934]
[1767709337076,0.03501788,94443.0,94418.0,0.04457234]
[1767709337382,0.09008,94442.0,94418.0,0.03397934]
[1767709337785,0.010591,94441.0,94418.0,0.03397934]
[1767709337986,0.09008,94442.0,94418.0,0.03397934]
[1767709338389,0.03501788,94443.0,94418.0,0.03397934]
[1767709338589,0.01059,94446.0,94421.0,0.03397934]
[1767709338889,0.01059,94444.0,94421.0,0.03397934]
[1767709339087,0.010591,94442.0,94421.0,0.03397934]
[1767709339392,0.03501788,94444.0,94418.0,0.09008]
[1767709339595,0.010591,94437.0,94419.0,0.01135307]
[1767709339791,0.18597332,94445.0,94413.0,0.03397934]
[1767709339792,0.03501788,94439.0,94413.0,0.12405934]
[1767709340095,0.010592,94435.0,94414.0,0.01135454]
[1767709340285,0.010592,94433.0,94415.0,0.01135454]
[1767709340589,0.010591,94435.0,94416.0,0.01135454]
[1767709340794,0.010592,94431.0,94413.0,0.0748833]
[1767709341095,0.03501788,94428.0,94403.0,0.0748833]
[1767709341298,0.09008,94427.0,94405.0,0.04457434]